bitfinex-derivatives/quotes_SOLF0:USTF0_20220101
["timestamp","ask_amount","ask_price","bid_price","bid_amount"]
[1641004983496,31.897,172.75,172.69,1.21032502]
[1641004984099,44.23087098,172.75,172.69,1.21032502]
[1641004987100,47.23087098,172.75,172.69,1.21032502]
[1641004987301,12.33387098,172.74,172.69,1.21032502]
[1641004987501,21.61587098,172.74,172.69,1.21032502]
[1641004987701,18.61587098,172.74,172.69,1.21032502]
[1641004987903,21.61587098,172.74,172.69,1.21032502]
[1641004988103,12.33387098,172.73,172.69,1.21032502]
[1641004988701,39.99866098,172.73,172.69,1.21032502]
[1641004989001,39.99866098,172.73,172.66,1.21032502]
[1641004990903,39.99866098,172.73,172.65,43.55872127]
[1641004991603,39.99866098,172.73,172.66,1.21246368]
[1641004992205,39.99866098,172.73,172.65,43.55872127]
[1641004992907,12.33387098,172.72,172.66,1.21246363]
[1641004993508,12.33387098,172.72,172.65,31.2276]
[1641004994108,12.33387098,172.72,172.66,1.21246536]
[1641004994807,12.33387098,172.71,172.65,31.2276]
[1641004995507,10.47129843,172.72,172.66,1.21245344]
[1641004996109,10.47129843,172.72,172.65,31.2276]
[1641004996311,12.33462417,172.7,172.65,31.2276]
[1641004996911,10.47129843,172.72,172.66,1.21243506]
[1641004997611,12.33482297,172.7,172.65,31.2276]
[1641004998213,10.47129843,172.72,172.66,1.21242829]
[1641004998814,12.33459016,172.7,172.65,31.2276]
[1641004999515,40.39219843,172.72,172.66,1.21243615]
[1641005000014,40.39219843,172.72,172.65,31.2276]
[1641005000216,12.33473831,172.7,172.65,31.2276]
[1641005001017,29.9209,172.72,172.65,31.2276]
[1641005001218,12.33507683,172.71,172.66,1.21241869]
[1641005001817,32.9209,172.72,172.65,31.2276]
[1641005001818,29.9209,172.72,172.65,31.2276]
[1641005002617,29.9209,172.72,172.66,1.21242133]
[1641005002818,12.33499777,172.71,172.66,1.21242133]
[1641005003417,12.33499777,172.71,172.65,31.2276]
[1641005003418,29.9209,172.72,172.65,31.2276]
[1641005004017,29.9209,172.72,172.66,1.21042232]
[1641005004618,29.9209,172.72,172.65,31.2276]
[1641005005519,29.9209,172.72,172.66,1.21042194]
[1641005005918,29.9209,172.72,172.65,31.2276]
[1641005006918,29.9209,172.72,172.66,1.2104218]
[1641005007520,42.23533399,172.72,172.65,37.3436]
[1641005008223,12.31443399,172.7,172.66,1.21243007]
[1641005008922,10.47211465,172.71,172.65,31.2276]
[1641005009623,29.9209,172.72,172.65,31.2276]
[1641005009826,12.33448587,172.71,172.66,1.21243839]
[1641005010725,12.33448587,172.71,172.65,31.2276]
[1641005011229,12.33448587,172.71,172.66,1.21244673]
[1641005011831,29.9209,172.72,172.65,31.2276]
[1641005012531,12.33427018,172.71,172.66,1.21244558]
[1641005013133,29.9209,172.72,172.65,31.2276]
[1641005013735,12.33438774,172.71,172.66,1.21244166]
[1641005014139,15.33438774,172.71,172.66,1.21244166]
[1641005014337,12.33438774,172.7,172.65,31.2276]
[1641005015137,12.33438774,172.7,172.66,1.21240395]
[1641005015639,10.47268856,172.71,172.65,31.2276]
[1641005015837,27.66479,172.68,172.65,31.2276]
[1641005016037,27.66479,172.68,172.62,12.33112127]
[1641005016439,27.66479,172.68,172.66,1.2124047]
[1641005017038,27.66479,172.68,172.65,4.788]
[1641005017739,27.66479,172.68,172.66,1.21240552]
[1641005018341,27.66479,172.68,172.65,4.788]
[1641005018541,27.66479,172.68,172.62,18.30541865]
[1641005018542,22.70073152,172.68,172.62,18.30541865]
[1641005018742,22.70073152,172.68,172.66,1.21240657]
[1641005019242,22.70073152,172.68,172.62,19.51782522]
[1641005022746,22.70073152,172.68,172.62,1.21240657]
[1641005027954,22.70073152,172.68,172.62,5.64140657]
[1641005028857,22.70073152,172.68,172.63,1.21240657]
[1641005029960,31.4216,172.69,172.63,1.21240657]
[1641005031163,59.08639,172.69,172.63,1.21240657]
[1641005036669,59.08639,172.69,172.63,13.54352784]
[1641005038068,71.42183043,172.69,172.63,1.21240657]
[1641005038671,59.08639,172.69,172.63,1.21240657]
[1641005040669,27.66479,172.69,172.63,1.21240657]
[1641005041274,4.10793508,172.67,172.66,4.10793508]
[1641005041472,4.10793508,172.67,172.66,8.37493508]
[1641005041772,4.10793508,172.68,172.66,9.58734165]
[1641005042472,4.10793508,172.68,172.66,8.37493508]
[1641005045378,27.66479,172.69,172.66,8.37493508]
[1641005045379,31.77272508,172.69,172.67,5.31900878]
[1641005048177,27.66479,172.69,172.65,4.10793508]
[1641005049282,4.10850272,172.66,172.64,4.10793508]
[1641005051783,4.10850272,172.66,172.65,4.10793508]
[1641005052388,4.10850272,172.66,172.64,5.31900878]
[1641005052987,7.10850272,172.66,172.64,5.31900878]
[1641005053489,4.10850272,172.66,172.64,5.31900878]
[1641005053689,15.33544043,172.68,172.63,4.10793508]
[1641005054088,27.66479,172.64,172.63,4.10793508]
[1641005054488,27.66479,172.64,172.61,4.10793508]
[1641005055290,12.33544043,172.65,172.61,4.10793508]
[1641005056194,40.00023043,172.65,172.61,4.10793508]
[1641005060097,40.00023043,172.65,172.61,10.02193508]
[1641005060495,27.66479,172.65,172.62,4.10793508]
[1641005061297,27.66479,172.65,172.61,5.914]
[1641005065600,27.66479,172.65,172.59,4.10793508]
[1641005066600,30.66479,172.65,172.59,4.10793508]
[1641005066802,27.66479,172.65,172.59,4.10793508]
[1641005067101,27.66479,172.65,172.58,5.3152783]
[1641005067501,3.0,172.64,172.58,4.10793508]
[1641005067702,3.0,172.64,172.57,34.55773508]
[1641005067903,30.66479,172.65,172.57,34.55773508]
[1641005068102,27.66479,172.65,172.57,34.55773508]
[1641005068303,27.66479,172.65,172.57,38.88673508]
[1641005068702,27.66479,172.65,172.57,34.7788]
[1641005068703,30.66479,172.65,172.57,34.7788]
[1641005069403,3.0,172.61,172.58,5.31527466]
[1641005069603,3.0,172.62,172.58,5.31527466]
[1641005069804,34.9499,172.64,172.58,5.31527466]
[1641005070002,31.9499,172.64,172.58,5.31527466]
[1641005070201,31.9499,172.64,172.58,4.10793508]
[1641005070405,31.9499,172.64,172.57,4.329]
[1641005071005,12.33544043,172.63,172.59,4.10793508]
[1641005071707,44.28534043,172.64,172.6,4.10793508]
[1641005074516,71.95013043,172.64,172.6,4.10793508]
[1641005075615,59.61469,172.64,172.61,4.10793508]
[1641005075814,27.66479,172.64,172.61,4.10793508]
[1641005076014,27.66479,172.64,172.61,8.46993508]
[1641005078418,12.33544043,172.65,172.61,8.46993508]
[1641005079019,12.33544043,172.65,172.61,4.362]
[1641005079219,27.66479,172.63,172.61,4.362]
[1641005079620,27.66479,172.63,172.61,8.47520479]
[1641005080220,27.66479,172.63,172.61,4.362]
[1641005080420,27.66479,172.63,172.57,48.23542127]
[1641005080620,30.66479,172.63,172.57,48.23542127]
[1641005081021,27.66479,172.63,172.6,4.11331471]
[1641005081221,27.66479,172.62,172.6,4.11331471]
[1641005081421,27.66479,172.62,172.57,31.5753]
[1641005081620,27.66479,172.62,172.58,1.21192414]
[1641005082021,27.66479,172.62,172.56,12.33112127]
[1641005082222,27.66479,172.62,172.57,4.09994047]
[1641005082923,27.66479,172.62,172.55,4.09994047]
[1641005083325,27.66479,172.59,172.55,4.09994047]
[1641005090530,27.66479,172.59,172.56,4.09994047]
[1641005091132,27.66479,172.59,172.58,4.09994047]
[1641005093635,12.33544043,172.62,172.58,4.09994047]
[1641005094834,27.66479,172.6,172.58,4.09994047]
[1641005095333,27.66479,172.6,172.57,4.09994047]
[1641005095534,30.66479,172.6,172.57,4.09994047]
[1641005096135,43.00023043,172.6,172.56,4.09994047]
[1641005096334,40.00023043,172.6,172.56,4.09994047]
[1641005096735,40.00023043,172.6,172.55,4.09994047]
[1641005096934,27.66479,172.57,172.55,4.09994047]
[1641005098434,27.66479,172.57,172.56,4.09994047]
[1641005099536,27.66479,172.57,172.56,9.31894047]
[1641005099736,69.38613043,172.6,172.56,9.31894047]
[1641005100137,40.00023043,172.6,172.56,9.31894047]
[1641005100338,27.66479,172.6,172.56,5.219]
[1641005100738,12.33544043,172.63,172.56,5.219]
[1641005100938,40.00023043,172.63,172.56,5.219]
[1641005101142,12.33544043,172.63,172.56,5.219]
[1641005101342,12.33544043,172.63,172.58,3.0]
[1641005101639,12.33544043,172.66,172.58,3.0]
[1641005102241,12.33544043,172.66,172.57,33.6199]
[1641005102540,44.75664043,172.7,172.6,4.09994047]
[1641005102740,44.75664043,172.7,172.61,29.6006]
[1641005102941,27.66479,172.68,172.61,35.9236]
[1641005103941,3.0,172.66,172.59,4.09994047]
[1641005104141,30.2118,172.67,172.6,4.09994047]
[1641005104348,33.2118,172.67,172.6,4.09994047]
[1641005104744,30.2118,172.67,172.6,4.09994047]
[1641005105043,12.33544043,172.66,172.6,4.98]
[1641005105645,44.71504043,172.67,172.6,4.98]
[1641005106647,4.09502351,172.63,172.6,4.98]
[1641005107247,4.09502351,172.62,172.6,4.98]
[1641005108249,4.09502351,172.64,172.6,4.98]
[1641005108848,4.09502351,172.62,172.6,4.98]
[1641005109047,4.09502351,172.62,172.57,27.66479]
[1641005109748,4.09502351,172.63,172.56,34.06424047]
[1641005111053,4.09502351,172.63,172.58,27.66479]
[1641005112155,12.33544043,172.64,172.6,4.09994047]
[1641005114456,12.33544043,172.66,172.62,4.09994047]
[1641005114855,12.33544043,172.65,172.61,4.09994047]
[1641005115657,12.33544043,172.66,172.62,4.09994047]
[1641005115858,18.34644043,172.66,172.62,4.09994047]
[1641005116456,12.33544043,172.65,172.61,4.09994047]
[1641005117063,27.66479,172.64,172.61,4.09994047]
[1641005117262,12.33544043,172.63,172.59,4.09994047]
[1641005121468,27.66479,172.64,172.55,36.03334047]
[1641005121668,27.66479,172.64,172.55,41.55934047]
[1641005122271,57.79119,172.64,172.56,5.3070055]
[1641005123573,57.79119,172.64,172.55,41.55934047]
[1641005124272,57.79119,172.64,172.57,4.09994047]
[1641005124872,57.79119,172.64,172.56,1.20708344]
[1641005124873,8.79206487,172.58,172.56,4.09682917]
[1641005125072,57.79119,172.64,172.53,8.22515933]
[1641005125073,3.0,172.57,172.53,8.22515933]
[1641005125274,58.32958,172.54,172.49,32.91096418]
[1641005125473,3.0,172.52,172.49,32.91096418]
[1641005125672,3.0,172.51,172.49,32.91096418]
[1641005125872,3.0,172.51,172.39,30.3154]
[1641005126272,3.0,172.52,172.39,30.3154]
[1641005127472,27.66479,172.46,172.39,30.3154]
[1641005128974,29.4637,172.53,172.39,30.3154]
[1641005129175,29.4637,172.53,172.39,36.5564]
[1641005129374,27.66479,172.51,172.4,5.94904656]
[1641005129874,27.66479,172.51,172.41,3.0]
[1641005130676,27.66479,172.51,172.42,3.0]
[1641005130877,27.66479,172.51,172.42,35.91096418]
[1641005131075,27.66479,172.51,172.44,3.0]
[1641005131275,27.66479,172.53,172.45,3.0]
[1641005131674,27.66479,172.53,172.44,9.562]
[1641005131874,27.66479,172.55,172.44,9.562]
[1641005132073,27.66479,172.55,172.45,31.0324]
[1641005132877,27.66479,172.55,172.46,5.94904656]
[1641005135687,10.49139439,172.54,172.45,31.0324]
[1641005137484,27.66479,172.51,172.45,31.0324]
[1641005140691,27.66479,172.51,172.46,3.0]
[1641005140888,27.66479,172.55,172.46,4.241]
[1641005141890,27.66479,172.55,172.45,29.80217522]
[1641005142088,27.66479,172.55,172.45,36.21817522]
[1641005143492,27.66479,172.55,172.45,66.88296522]
[1641005143892,27.66479,172.55,172.45,63.88296522]
[1641005146798,27.66479,172.55,172.45,36.21817522]
[1641005149404,27.66479,172.52,172.45,36.21817522]
[1641005149807,27.66479,172.55,172.45,36.21817522]
[1641005151406,27.66479,172.55,172.46,5.9722919]
[1641005151604,30.66479,172.55,172.46,5.9722919]
[1641005151905,10.49142996,172.54,172.45,36.21817522]
[1641005153506,27.66479,172.51,172.45,36.21817522]
[1641005155406,40.01404011,172.51,172.45,36.21817522]
[1641005158513,27.66479,172.51,172.45,36.21817522]
[1641005158912,12.34925011,172.52,172.45,36.21817522]
[1641005159212,12.34925011,172.54,172.46,18.32159739]
[1641005159614,27.66479,172.52,172.46,18.32159739]
[1641005160015,27.66479,172.52,172.46,12.34925011]
[1641005160214,27.66479,172.52,172.45,29.80217522]
[1641005165121,27.66479,172.52,172.46,1.20821863]
[1641005167026,27.66479,172.52,172.45,29.80217522]
[1641005167225,40.01404011,172.52,172.45,29.80217522]
[1641005169528,40.01404011,172.52,172.42,27.66479]
[1641005169729,27.66479,172.49,172.43,31.6422]
[1641005169930,27.66479,172.49,172.46,1.21061669]
[1641005170529,27.66479,172.49,172.44,1.21061669]
[1641005173230,27.66479,172.49,172.44,19.53243348]
[1641005174031,27.66479,172.49,172.44,1.21061669]
[1641005178036,27.66479,172.49,172.45,3.0]
[1641005178235,43.62775011,172.51,172.45,8.089]
[1641005178437,43.62775011,172.51,172.45,5.089]
[1641005178937,31.2785,172.51,172.46,1.21061669]
[1641005180241,27.66479,172.52,172.46,1.21061669]
[1641005180941,40.01404011,172.52,172.46,1.21061669]
[1641005182341,40.01404011,172.52,172.44,19.53227317]
[1641005182942,40.01404011,172.52,172.44,13.5598668]
[1641005183141,12.34925011,172.51,172.44,1.21061669]
[1641005184443,12.34925011,172.5,172.44,1.21061669]
[1641005185045,12.34925011,172.51,172.44,1.21061669]
[1641005185743,4.11521975,172.47,172.46,4.11521975]
[1641005187943,1.975e-05,172.47,172.46,4.11521975]
[1641005188545,27.66479,172.52,172.46,12.34925011]
[1641005189445,27.66479,172.52,172.45,1.21061669]
[1641005190144,27.66479,172.52,172.45,12.34925011]
[1641005192149,27.66479,172.52,172.46,12.34925011]
[1641005193452,40.01404011,172.52,172.44,19.53039564]
[1641005196054,12.34925011,172.5,172.44,1.21061669]
[1641005196656,12.34925011,172.49,172.44,1.21061669]
[1641005201060,40.01404011,172.52,172.44,19.53308282]
[1641005201661,40.01404011,172.52,172.44,13.5598668]
[1641005201860,12.34925011,172.51,172.44,1.21061669]
[1641005202462,12.34925011,172.5,172.43,31.6422]
[1641005203064,10.49279795,172.51,172.44,1.21086445]
[1641005203764,10.49279795,172.51,172.43,31.6422]
[1641005203964,12.34964576,172.5,172.43,31.6422]
[1641005204163,27.66479,172.48,172.43,34.6422]
[1641005204565,27.66479,172.48,172.44,1.21086558]
[1641005205067,27.66479,172.48,172.43,34.6422]
[1641005205265,40.01288506,172.52,172.44,18.32237847]
[1641005205667,40.01288506,172.52,172.44,19.53329385]
[1641005206264,40.01288506,172.52,172.44,1.21091538]
[1641005206466,12.34809506,172.51,172.44,1.21091538]
[1641005207268,40.01288506,172.52,172.44,1.21091538]
[1641005208269,12.34809506,172.51,172.44,1.21091538]
[1641005209671,12.34809506,172.5,172.42,19.52872122]
[1641005210070,12.34809506,172.51,172.43,12.34925011]
[1641005210872,40.01288506,172.52,172.44,12.34925011]
[1641005213773,12.34809506,172.51,172.44,12.34925011]
[1641005214372,40.01288506,172.52,172.44,12.34925011]
[1641005215476,40.01288506,172.52,172.44,15.34925011]
[1641005215676,27.66479,172.52,172.45,12.34925011]
[1641005215874,27.66479,172.52,172.45,18.83025011]
[1641005216575,27.66479,172.52,172.46,13.56016549]
[1641005217375,27.66479,172.52,172.46,1.21091538]
[1641005218180,12.34809506,172.51,172.46,1.21091538]
[1641005219579,40.01288506,172.52,172.46,1.21091538]
[1641005219979,12.34809506,172.52,172.46,1.21091538]
[1641005220982,12.34809506,172.52,172.46,4.21091538]
[1641005221182,12.34809506,172.52,172.46,8.21091538]
[1641005221582,12.34809506,172.54,172.49,3.0]
[1641005221782,12.34809506,172.54,172.49,5.322]
[1641005222381,12.34809506,172.54,172.52,27.66479]
[1641005222782,12.34809506,172.58,172.52,27.66479]
[1641005223185,12.34809506,172.58,172.5,44.47016549]
[1641005223387,12.34809506,172.58,172.53,1.21091538]
[1641005224286,12.34809506,172.57,172.51,1.21091538]
[1641005225585,12.34809506,172.58,172.51,1.21091538]
[1641005227088,12.34809506,172.57,172.5,19.53207141]
[1641005227289,12.34809506,172.57,172.51,32.1022]
[1641005228192,10.49150601,172.59,172.52,1.21091538]
[1641005228193,12.34809506,172.58,172.52,1.21091538]
[1641005231998,12.34809506,172.59,172.52,1.21091538]
[1641005232597,12.34809506,172.59,172.52,28.87570538]
[1641005232897,12.34809506,172.58,172.52,1.21091538]
[1641005233599,12.34809506,172.57,172.52,1.21091538]
[1641005236705,12.34809506,172.56,172.52,1.21091538]
[1641005237303,12.34809506,172.58,172.52,1.21091538]
[1641005240613,12.34809506,172.59,172.52,1.21091538]
[1641005241614,12.34809506,172.59,172.52,6.85691538]
[1641005241815,12.34809506,172.59,172.52,13.85691538]
[1641005242014,12.34809506,172.6,172.53,1.21091538]
[1641005242213,12.34809506,172.6,172.54,3.0]
[1641005242415,12.34809506,172.6,172.53,1.21091538]
[1641005242614,12.34809506,172.6,172.56,3.0]
[1641005242815,12.34809506,172.6,172.59,27.66479]
[1641005243417,12.34809506,172.63,172.59,27.66479]
[1641005244320,27.66479,172.69,172.59,27.66479]
[1641005244321,12.34809506,172.65,172.6,1.21091538]
[1641005244519,12.34809506,172.65,172.6,5.61191538]
[1641005245620,12.34809506,172.65,172.6,4.401]
[1641005245821,12.34809506,172.64,172.6,4.401]
[1641005248925,12.34809506,172.63,172.6,4.401]
[1641005250027,12.34809506,172.63,172.59,31.77817209]
[1641005252732,4.1132372,172.6,172.59,31.77817209]
[1641005253532,3.0,172.61,172.58,4.11338209]
[1641005253934,19.18909506,172.62,172.58,4.11338209]
[1641005254131,22.18909506,172.62,172.58,4.11338209]
[1641005254331,19.18909506,172.62,172.58,4.11338209]
[1641005254531,22.18909506,172.62,172.58,4.11338209]
[1641005254732,40.01288506,172.59,172.55,4.11338209]
[1641005255733,12.34809506,172.58,172.54,4.11338209]
[1641005256434,12.34809506,172.58,172.56,4.11338209]
[1641005256634,27.66479,172.59,172.56,4.11338209]
[1641005256837,12.34809506,172.6,172.56,4.11338209]
[1641005258138,12.34809506,172.61,172.57,4.11338209]
[1641005259139,12.34809506,172.6,172.56,4.11338209]
[1641005260441,12.34809506,172.59,172.56,4.11338209]
[1641005261543,12.34809506,172.59,172.55,4.11338209]
[1641005262942,12.34809506,172.6,172.57,4.11338209]
[1641005263644,12.34809506,172.6,172.56,5.32417363]
[1641005264445,12.34809506,172.59,172.55,9.50538209]
[1641005266451,10.48584002,172.61,172.55,5.392]
[1641005267252,10.48584002,172.61,172.55,9.50633524]
[1641005267452,12.34300572,172.59,172.55,9.50633524]
[1641005267952,42.21704002,172.61,172.55,5.392]
[1641005268452,12.34338485,172.59,172.55,9.50646162]
[1641005269353,12.34338485,172.59,172.55,5.392]
[1641005269553,12.34338485,172.59,172.53,27.66479]
[1641005269955,12.34338485,172.6,172.56,5.32493146]
[1641005270153,12.34338485,172.6,172.56,12.23993146]
[1641005270754,10.48584002,172.61,172.56,6.915]
[1641005271357,12.34342913,172.6,172.56,11.02947638]
[1641005272456,12.34342913,172.6,172.56,6.915]
[1641005272656,12.34342913,172.6,172.53,40.01404011]
[1641005273057,10.48584002,172.61,172.53,40.01404011]
[1641005273456,10.48584002,172.61,172.56,4.11444881]
[1641005274458,12.34318623,172.6,172.53,27.66479]
[1641005274860,12.34318623,172.59,172.55,4.11452587]
[1641005275761,58.78819,172.62,172.53,27.66479]
[1641005276462,71.075571,172.62,172.53,27.66479]
[1641005278763,74.075571,172.62,172.53,27.66479]
[1641005278965,12.287381,172.61,172.51,39.96809367]
[1641005279666,12.287381,172.58,172.54,4.09579367]
[1641005280365,10.48639563,172.61,172.51,35.8723]
[1641005280569,10.48639563,172.61,172.51,30.1293]
[1641005281069,12.34377191,172.58,172.54,4.11459064]
[1641005281768,12.34377191,172.58,172.51,30.1293]
[1641005283070,10.48639563,172.61,172.51,30.1293]
[1641005283270,10.48639563,172.61,172.54,4.11460565]
[1641005283769,12.34388509,172.58,172.51,34.4993]
[1641005284769,12.34388509,172.58,172.54,4.11463089]
[1641005285569,12.34388509,172.57,172.53,4.11470221]
[1641005285771,3.0,172.56,172.53,4.11470221]
[1641005285970,3.0,172.54,172.53,4.11470221]
[1641005286170,5.232,172.54,172.53,4.11470221]
[1641005286370,5.232,172.54,172.5,40.01404011]
[1641005286772,5.232,172.54,172.52,1.21073216]
[1641005287675,32.7069,172.57,172.51,12.34925011]
[1641005287873,12.34668676,172.55,172.51,1.2106565]
[1641005288576,10.48639563,172.56,172.5,27.66479]
[1641005289073,4.11549274,172.52,172.51,1.21066345]
[1641005290076,12.34647821,172.56,172.5,27.66479]
[1641005290677,4.11535566,172.52,172.51,1.21067716]
[1641005291178,32.7069,172.57,172.5,27.66479]
[1641005291976,29.7069,172.57,172.5,27.66479]
[1641005292176,4.11544724,172.52,172.51,1.210668]
[1641005292978,4.11534418,172.53,172.5,27.66479]
[1641005293679,12.34616204,172.55,172.51,1.21067399]
[1641005294180,10.48949386,172.56,172.5,27.66479]
[1641005294379,13.48949386,172.56,172.5,27.66479]
[1641005294582,10.48949386,172.56,172.5,27.66479]
[1641005294778,13.48949386,172.56,172.5,27.66479]
[1641005294979,10.48949386,172.56,172.5,27.66479]
[1641005295379,12.34671969,172.54,172.5,27.66479]
[1641005296179,12.34657161,172.55,172.51,1.21066033]
[1641005296779,12.34657161,172.54,172.5,27.66479]
[1641005298081,13.48949386,172.56,172.5,27.66479]
[1641005298281,3.0,172.55,172.5,27.66479]
[1641005298684,12.34727203,172.53,172.5,27.66479]
[1641005299382,3.0,172.56,172.5,27.66479]
[1641005299781,3.0,172.55,172.5,27.66479]
[1641005299981,3.0,172.56,172.5,27.66479]
[1641005300284,3.0,172.55,172.5,27.66479]
[1641005302685,3.0,172.55,172.5,21.07947571]
[1641005303185,3.0,172.54,172.5,21.07947571]
[1641005303587,3.0,172.55,172.5,21.07947571]
[1641005305187,3.0,172.54,172.5,21.07947571]
[1641005305888,3.0,172.55,172.5,21.07947571]
[1641005306088,12.27747595,172.53,172.5,25.83347571]
[1641005306689,12.27747595,172.55,172.51,5.30362102]
[1641005314293,12.27747595,172.55,172.51,9.58962102]
[1641005314793,12.27747595,172.55,172.51,8.3785424]
[1641005317296,12.27747595,172.53,172.51,4.286]
[1641005317496,12.27747595,172.53,172.5,21.07947571]
[1641005318598,12.27747595,172.54,172.5,21.07947571]
[1641005323605,12.27747595,172.54,172.5,27.76547571]
[1641005324308,12.27747595,172.55,172.51,5.3034158]
[1641005327708,27.66479,172.58,172.51,5.3034158]
[1641005327709,12.27747595,172.57,172.53,4.0925424]
[1641005329210,12.27747595,172.56,172.52,5.3034158]
[1641005330110,12.27747595,172.56,172.53,4.0925424]
[1641005330312,12.27747595,172.57,172.53,4.0925424]
[1641005330910,12.27747595,172.57,172.52,5.3034158]
[1641005330911,12.27747595,172.56,172.52,5.3034158]
[1641005332512,12.27747595,172.57,172.53,4.0925424]
[1641005333814,12.27747595,172.57,172.52,5.3034158]
[1641005334012,12.27747595,172.56,172.52,5.3034158]
[1641005339223,12.27747595,172.57,172.53,4.0925424]
[1641005345129,12.27747595,172.57,172.51,32.0066]
[1641005345130,4.10285301,172.55,172.51,36.0991424]
[1641005346433,4.10285301,172.53,172.51,32.0066]
[1641005346633,4.10285301,172.53,172.5,27.76547571]
[1641005347332,27.66479,172.58,172.5,31.85801811]
[1641005347333,4.10285301,172.54,172.5,31.85801811]
[1641005348134,12.27747595,172.56,172.52,4.0925424]
[1641005352441,12.27747595,172.55,172.51,5.30365701]
[1641005354242,10.48735067,172.57,172.51,1.21111461]
[1641005354942,27.66479,172.58,172.5,27.76547571]
[1641005360755,30.66479,172.58,172.5,27.76547571]
[1641005360956,12.33869894,172.55,172.51,5.32329623]
[1641005361358,12.33869894,172.55,172.51,1.21039658]
[1641005361557,30.66479,172.58,172.53,32.90319717]
[1641005361956,30.66479,172.58,172.57,12.33890893]
[1641005362156,27.66479,172.58,172.57,12.33890893]
[1641005363357,3.0,172.59,172.57,12.33890893]
[1641005363560,28.0418783,172.6,172.57,12.33890893]
[1641005364062,27.66479,172.58,172.57,12.33890893]
[1641005365458,27.66479,172.58,172.56,12.33890893]
[1641005369067,27.66479,172.58,172.54,6.499]
[1641005369068,10.4706577,172.57,172.54,6.499]
[1641005369265,10.4706577,172.57,172.47,4.10778443]
[1641005369867,10.4706577,172.57,172.5,3.0]
[1641005369868,4.10769719,172.51,172.5,3.0]
[1641005370067,4.10769719,172.51,172.48,4.10778443]
[1641005370871,4.10769719,172.49,172.47,5.315999]
[1641005371169,4.10769719,172.49,172.48,3.0]
[1641005372168,4.10769719,172.5,172.48,3.0]
[1641005372667,4.10769719,172.5,172.49,3.0]
[1641005374770,4.10769719,172.51,172.49,3.0]
[1641005376673,4.10769719,172.5,172.49,3.0]
[1641005380582,12.32309157,172.54,172.49,3.0]
[1641005380882,12.32309157,172.53,172.49,7.629]
[1641005381084,12.32309157,172.53,172.49,4.629]
[1641005381285,12.32309157,172.53,172.5,3.0]
[1641005381485,12.32309157,172.54,172.49,4.629]
[1641005383788,12.32309157,172.54,172.5,3.0]
[1641005384389,39.98788157,172.55,172.5,3.0]
[1641005384592,39.98788157,172.55,172.49,4.629]
[1641005386393,39.98788157,172.55,172.48,34.97088443]
[1641005387495,27.66479,172.55,172.48,34.97088443]
[1641005387893,27.66479,172.55,172.53,3.0]
[1641005388094,27.66479,172.55,172.53,8.537]
[1641005388294,27.66479,172.55,172.54,3.0]
[1641005388696,12.32309157,172.56,172.54,3.0]
[1641005389195,12.32309157,172.56,172.55,3.0]
[1641005389394,12.32309157,172.57,172.55,3.0]
[1641005389596,12.32309157,172.57,172.56,3.0]
[1641005390195,12.32309157,172.6,172.56,8.31855327]
[1641005391097,12.32309157,172.6,172.56,7.10778443]
[1641005391497,12.32309157,172.6,172.59,3.0]
[1641005391698,12.32309157,172.6,172.59,9.352]
[1641005391999,43.38867386,172.62,172.59,9.352]
[1641005392702,10.48547669,172.62,172.59,9.352]
[1641005393400,32.90319717,172.64,172.59,9.352]
[1641005394903,59.63599,172.66,172.59,6.352]
[1641005395204,59.63599,172.66,172.6,3.0]
[1641005395205,27.66479,172.62,172.6,3.0]
[1641005397004,27.66479,172.62,172.54,29.9962]
[1641005397806,4.07971764,172.61,172.54,29.9962]
[1641005398004,4.07971764,172.61,172.6,3.0]
[1641005398208,4.07971764,172.61,172.6,5.619]
[1641005399609,10.48550586,172.61,172.6,5.619]
[1641005400612,10.48550586,172.61,172.57,3.0]
[1641005401113,43.38870303,172.61,172.57,3.0]
[1641005402713,43.38870303,172.61,172.54,32.2626]
[1641005403419,43.38870303,172.61,172.54,36.37038443]
[1641005403621,43.38870303,172.61,172.59,3.0]
[1641005403820,43.38870303,172.61,172.59,9.519]
[1641005404221,10.48550586,172.61,172.59,9.519]
[1641005404421,10.48550586,172.61,172.59,6.519]
[1641005406724,43.38870303,172.61,172.59,6.519]
[1641005408827,43.38870303,172.61,172.57,3.0]
[1641005409425,43.38870303,172.61,172.53,9.64478443]